[Event "XII Sabadell Open 2019"]
[Site "Sabadell"]
[Date "2019.09.05"]
[Round "4.15"]
[White "Alonso Castillo, Sergio"]
[Black "Llonch Farres, Gerard"]
[Result "1-0"]
[ECO "C00"]
[WhiteElo "2037"]
[BlackElo "1585"]
[Annotator "NA"]
[PlyCount "83"]
[EventDate "2019.09.01"]
[EventCountry "ESP"]
[SourceTitle "playchess.com"]
[Source "ChessBase"]
[SourceQuality "1"]
[TimeControl "5400+30"]

1. Nf3 {[%emt 0:01:02]} d5 {[%emt 0:00:07]} 2. g3 {[%emt 0:00:14]} Nf6 {[%emt 0:00:39]} 3. Bg2 {[%emt 0:00:11]} c5 {[%emt 0:00:27]} 4. O-O {[%emt 0:00:26]} Nc6 {[%emt 0:00:48]} 5. d3 {[%emt 0:01:16]} e6 {[%emt 0:01:06]} 6. Nbd2 {[%emt 0:00:56]} Be7 {[%emt 0:02:27]} 7. e4 {[%emt 0:02:06]} d4 {[%emt 0:04:24]} 8. e5 {[%emt 0:03:20] C00: French: Unusual White 2nd moves} (8. a4 O-O 9. Nc4 b6 10. Bd2 Bb7 11. Ne1 a6 12. f4 b5 13. Na3 Qb6 14. Kh1 c4 15. Qe2 Bxa3 16. bxa3 c3 {1-0 (36) Novik,M (2457)-Bucinskas,V (2328) Lithuania 2018}) 8... Nd5 {[%emt 0:00:25]} 9. Re1 {[%emt 0:01:03]} O-O {[%emt 0:06:03]} 10. h4 {[%emt 0:08:33]} f6 {[%emt 0:00:35]} 11. exf6 {[%emt 0:03:29]} Bxf6 {[%emt 0:03:45]} 12. Ne4 {[%emt 0:06:35]} Be7 {[%emt 0:02:18]} 13. Neg5 {[%emt 0:04:46]} Bxg5 $146 {[%emt 0:06:27]} ({Predecessor:} 13... Rf6 14. Bh3 Qf8 15. Bxe6+ Bxe6 16. Nxe6 Qf7 {1-0 (40) Catta Preta,D (2134)-Leite,E (2013) Brazil 2001}) 14. Bxg5 {[%emt 0:02:51]} Qd6 {[%emt 0:02:39]} 15. Qe2 {[%emt 0:01:22]} h6 {[%emt 0:02:11]} 16. Bd2 {[%emt 0:00:08]} Bd7 {[%emt 0:02:50]} 17. Ne5 {[%emt 0:03:58]} Rae8 {[%emt 0:00:51]} 18. Bh3 {[%emt 0:04:17]} Rf6 {[%emt 0:08:00]} 19. Qe4 {[%emt 0:05:49]} Ndb4 {[%emt 0:11:02]} 20. Bxb4 {[%emt 0:05:18]} Nxb4 {[%emt 0:02:46]} 21. Nxd7 {[%emt 0:03:29]} Qxd7 {[%emt 0:02:12]} 22. Re2 {[%emt 0:00:10]} Nd5 {[%emt 0:03:28]} 23. Rae1 {[%emt 0:02:22]} Kf7 {[%emt 0:00:57]} 24. Qe5 {[%emt 0:06:32]} b5 {[%emt 0:05:20]} 25. Qh5+ {[%emt 0:02:04]} Kf8 {[%emt 0:00:42]} 26. Re5 {[%emt 0:03:00]} c4 {[%emt 0:02:04]} 27. dxc4 {[%emt 0:06:44]} bxc4 {[%emt 0:00:32]} 28. Qe2 {[%emt 0:00:49]} c3 {[%emt 0:04:03]} 29. bxc3 {[%emt 0:00:31]} Nxc3 {[%emt 0:00:25]} 30. Qc4 {[%emt 0:04:03]} Kf7 {[%emt 0:00:40]} 31. Rc5 {[%emt 0:01:35]} Nd5 {[%emt 0:11:16]} 32. Qxd4 {[%emt 0:03:18]} Re7 {[%emt 0:01:39]} 33. Bxe6+ {[%emt 0:09:59]} Rfxe6 {[%emt 0:00:10]} 34. Rxe6 {[%emt 0:00:13]} Rxe6 {[%emt 0:00:42]} 35. Rxd5 {[%emt 0:01:57]} Re1+ {[%emt 0:00:44]} 36. Kh2 {[%emt 0:01:49]} Qc6 {[%emt 0:00:45]} 37. Qxa7+ {[%emt 0:03:20]} Ke6 {[%emt 0:00:21]} (37... Kg8 $142 38. Qd4 Qxc2) 38. c4 {[%emt 0:03:44]} Qxc4 $18 {[%emt 0:00:09]} 39. Qd7+ {[%emt 0:00:35]} Kf6 {[%emt 0:00:12]} 40. Rd6+ {[%emt 0:00:25]} Ke5 {[%emt 0:00:32]} 41. Qe7+ {[%emt 0:01:17]} Kf5 {[%emt 0:00:02]} 42. Qxe1 {[%emt 0:00:11]} 1-0

[Event "XII Sabadell Open 2019"]
[Site "Sabadell"]
[Date "2019.09.06"]
[Round "5.4"]
[White "Valderrama Quiceno, Esteban Alb"]
[Black "Gomez Jurado, Luis Alberto"]
[Result "1-0"]
[ECO "A06"]
[WhiteElo "2407"]
[BlackElo "2307"]
[Annotator "ChessBase"]
[PlyCount "105"]
[EventDate "2019.09.01"]
[EventCountry "ESP"]
[SourceTitle "playchess.com"]
[Source "ChessBase"]
[SourceQuality "1"]
[TimeControl "5400+30"]

1. Nf3 {[%emt 0:03:55]} Nf6 {[%emt 0:00:00]} 2. b3 {[%emt 0:01:34]} d5 {[%emt 0:00:18]} 3. Bb2 {[%emt 0:00:14]} e6 {[%emt 0:00:09]} 4. e3 {[%emt 0:00:19]} Be7 {[%emt 0:03:05]} 5. Be2 {[%emt 0:00:18]} a5 {[%emt 0:00:38]} 6. a3 {[%emt 0:02:25]} b6 {[%emt 0:02:22]} 7. O-O {[%emt 0:00:26]} O-O {[%emt 0:00:07]} 8. c4 {[%emt 0:01:41]} Ba6 {[%emt 0:00:39]} 9. Qc2 {[%emt 0:02:15]} c5 {[%emt 0:04:09]} 10. Nc3 {[%emt 0:08:32]} Nc6 {[%emt 0:00:47]} 11. cxd5 {[%emt 0:10:11]} Bxe2 {[%emt 0:02:07]} 12. Nxe2 {[%emt 0:00:10]} exd5 {[%emt 0:06:27]} 13. d4 {[%emt 0:03:06]} Qd7 {[%emt 0:04:13]} 14. Rfd1 {[%emt 0:14:54]} Rfd8 {[%emt 0:09:24]} 15. Nf4 {[%emt 0:05:29]} Rac8 {[%emt 0:09:52]} 16. dxc5 {[%emt 0:02:43]} bxc5 {[%emt 0:00:07]} 17. Rac1 {[%emt 0:03:55]} d4 {[%emt 0:02:46]} 18. Ne2 {[%emt 0:12:39]} Qe6 {[%emt 0:19:13]} 19. exd4 {[%emt 0:01:08]} Nxd4 {[%emt 0:02:04]} 20. Nexd4 {[%emt 0:00:13]} cxd4 {[%emt 0:00:03]} 21. Qd3 {[%emt 0:00:12]} Rxc1 {[%emt 0:02:54]} 22. Rxc1 {[%emt 0:00:16]} h6 {[%emt 0:02:43]} 23. g3 {[%emt 0:03:10]} Qh3 {[%emt 0:08:43]} 24. Rc4 {[%emt 0:02:10]} Re8 {[%emt 0:05:57]} 25. Rxd4 {[%emt 0:03:30]} Bc5 {[%emt 0:00:39]} 26. Rd8 {[%emt 0:00:49]} Qe6 {[%emt 0:03:33]} 27. Bxf6 {[%emt 0:00:28]} gxf6 {[%emt 0:00:07]} 28. Rxe8+ {[%emt 0:00:15]} Qxe8 {[%emt 0:00:04]} 29. a4 {[%emt 0:00:09]} Kg7 {[%emt 0:02:18]} 30. Kg2 {[%emt 0:01:17]} Qa8 {[%emt 0:00:29]} 31. Qf5 {[%emt 0:00:53]} Qc6 {[%emt 0:00:20]} 32. Qc2 {[%emt 0:00:31]} Qd5 {[%emt 0:00:36]} 33. Qc4 {[%emt 0:00:39]} Qc6 {[%emt 0:01:14]} 34. Qb5 {[%emt 0:00:59]} Qc7 {[%emt 0:01:11]} 35. Nh4 {[%emt 0:00:14]} Bb4 {[%emt 0:00:59]} 36. Nf5+ {[%emt 0:00:19]} Kh7 {[%emt 0:01:04]} 37. Qd5 {[%emt 0:01:19]} Bf8 {[%emt 0:00:48]} 38. h4 {[%emt 0:00:05]} Kg8 {[%emt 0:00:13]} 39. h5 {[%emt 0:00:52]} Qb6 {[%emt 0:01:33]} 40. Ne3 {[%emt 0:01:20]} Bb4 {[%emt 0:00:25]} 41. Qa8+ {[%emt 0:01:59]} Bf8 {[%emt 0:00:33]} 42. Nf5 {[%emt 0:00:43]} Kh7 {[%emt 0:00:14]} 43. Qe4 {[%emt 0:04:32]} Bc5 {[%emt 0:03:45]} 44. Kh3 {[%emt 0:04:06]} Bf8 {[%emt 0:01:50]} 45. Nd6+ {[%emt 0:02:22]} Kg8 {[%emt 0:01:14]} 46. Qg4+ {[%emt 0:00:06]} Kh7 {[%emt 0:00:16]} 47. Nxf7 {[%emt 0:00:15]} Bg7 {[%emt 0:00:07]} 48. Qg6+ {[%emt 0:00:08]} Kg8 {[%emt 0:00:05]} 49. Nxh6+ {[%emt 0:00:05]} Kh8 {[%emt 0:00:02]} 50. Nf5 {[%emt 0:00:47]} Bf8 {[%emt 0:00:17]} 51. Qf7 {[%emt 0:00:17]} Qb4 {[%emt 0:00:33]} 52. Nh4 {[%emt 0:01:23]} Bg7 {[%emt 0:00:26]} 53. h6 {[%emt 0:00:09]} 1-0

[Event "XII Sabadell Open 2019"]
[Site "Sabadell"]
[Date "2019.09.06"]
[Round "5.9"]
[White "Sanchez, Sebastian Felipe"]
[Black "Quesada Vera, Liordis"]
[Result "1-0"]
[ECO "A55"]
[WhiteElo "2413"]
[BlackElo "2389"]
[Annotator "ChessBase"]
[PlyCount "69"]
[EventDate "2019.09.01"]
[EventCountry "ESP"]
[SourceTitle "playchess.com"]
[Source "ChessBase"]
[SourceQuality "1"]
[TimeControl "5400+30"]

1. d4 {[%emt 0:25:36]} Nf6 {[%emt 0:00:00]} 2. c4 {[%emt 0:00:08]} d6 {[%emt 0:00:00]} 3. Nf3 {[%emt 0:00:06]} Nbd7 {[%emt 0:00:00]} 4. Nc3 {[%emt 0:00:11]} e5 {[%emt 0:00:00]} 5. g3 {[%emt 0:00:05]} Be7 {[%emt 0:00:03]} 6. Bg2 {[%emt 0:00:18]} O-O {[%emt 0:00:09]} 7. O-O {[%emt 0:00:05]} c6 {[%emt 0:00:07]} 8. e4 {[%emt 0:03:50]} a6 {[%emt 0:04:42]} 9. Qe2 {[%emt 0:05:25]} Qe8 {[%emt 0:09:34]} 10. Rd1 {[%emt 0:00:00]} b5 {[%emt 0:10:03]} 11. h3 {[%emt 0:00:00]} bxc4 {[%emt 0:22:56]} 12. Qxc4 {[%emt 0:00:00]} Nb6 {[%emt 0:00:07]} 13. Qe2 {[%emt 0:00:00]} Nfd7 {[%emt 0:00:11]} 14. Be3 {[%emt 0:00:20]} Bf6 {[%emt 0:12:46]} 15. dxe5 {[%emt 0:03:17]} dxe5 {[%emt 0:02:10]} 16. Rd6 {[%emt 0:06:35]} Bb7 {[%emt 0:00:00]} 17. Bf1 {[%emt 0:15:44]} Be7 {[%emt 0:02:45]} 18. Rd2 {[%emt 0:00:00]} c5 {[%emt 0:17:44]} 19. Rad1 {[%emt 0:00:00]} f5 {[%emt 0:00:59]} 20. exf5 {[%emt 0:00:19]} e4 {[%emt 0:01:45]} 21. Nh2 {[%emt 0:12:25]} Ne5 {[%emt 0:01:53]} 22. Bf4 {[%emt 0:12:01]} Nec4 {[%emt 0:08:16]} 23. Rc2 {[%emt 0:00:00]} e3 {[%emt 0:00:37]} 24. fxe3 {[%emt 0:00:00]} Rxf5 {[%emt 0:02:03]} 25. e4 {[%emt 0:00:00]} Rxf4 {[%emt 0:01:41]} 26. gxf4 {[%emt 0:00:00]} Bf6 {[%emt 0:00:16]} 27. e5 {[%emt 0:00:00]} Qg6+ {[%emt 0:01:12]} 28. Bg2 {[%emt 0:00:00]} Re8 {[%emt 0:00:43]} 29. Ng4 {[%emt 0:01:37]} h5 {[%emt 0:01:09]} 30. Bxb7 {[%emt 0:01:27]} Bxe5 {[%emt 0:00:34]} 31. Be4 {[%emt 0:00:36]} Bd4+ {[%emt 0:00:32]} 32. Rxd4 {[%emt 0:00:35]} Qf7 {[%emt 0:00:18]} 33. Rxc4 {[%emt 0:01:19]} hxg4 {[%emt 0:00:02]} 34. Rxc5 {[%emt 0:01:49]} Qxf4 {[%emt 0:01:01]} 35. Bd5+ {[%emt 0:01:38]} 1-0

[Event "XII Sabadell Open 2019"]
[Site "Sabadell"]
[Date "2019.09.06"]
[Round "5.11"]
[White "Avila Pavas, Santiago"]
[Black "Rodriguez Velasco, German Enrique"]
[Result "1-0"]
[ECO "D02"]
[WhiteElo "2412"]
[BlackElo "2148"]
[Annotator "ChessBase"]
[PlyCount "46"]
[EventDate "2019.09.01"]
[EventCountry "ESP"]
[SourceTitle "playchess.com"]
[Source "ChessBase"]
[SourceQuality "1"]
[TimeControl "5400+30"]

1. Nf3 {[%emt 0:00:00]} Nf6 {[%emt 0:26:38]} 2. d4 {[%emt 0:00:00]} c5 {[%emt 0:00:11]} 3. c3 {[%emt 0:02:07]} d5 {[%emt 0:00:56]} 4. dxc5 {[%emt 0:01:58]} e6 {[%emt 0:00:37]} 5. b4 {[%emt 0:01:15]} Be7 {[%emt 0:03:04]} 6. Bb2 {[%emt 0:04:29]} O-O {[%emt 0:00:18]} 7. Nbd2 {[%emt 0:00:08]} Nbd7 {[%emt 0:00:29]} 8. c4 {[%emt 0:05:00]} dxc4 {[%emt 0:00:55]} 9. e4 {[%emt 0:02:09]} a5 {[%emt 0:02:07]} 10. a3 {[%emt 0:00:44]} axb4 {[%emt 0:00:41]} 11. axb4 {[%emt 0:00:09]} Rxa1 {[%emt 0:00:04]} 12. Qxa1 {[%emt 0:04:02]} b5 {[%emt 0:00:18]} 13. Qa7 {[%emt 0:02:09]} Ne8 {[%emt 0:02:28]} 14. Be2 {[%emt 0:03:14]} Nc7 {[%emt 0:00:38]} 15. Nd4 {[%emt 0:12:38]} Nf6 {[%emt 0:10:00]} 16. Nc6 {[%emt 0:00:00]} Qd7 {[%emt 0:00:09]} 17. Nb8 {[%emt 0:00:00]} Qd8 {[%emt 0:01:14]} 18. Be5 {[%emt 0:00:00]} Nxe4 {[%emt 0:01:16]} 19. Nxe4 {[%emt 0:00:00]} Qd5 {[%emt 0:09:35]} 20. Bf3 {[%emt 0:11:15]} Qxe5 {[%emt 0:00:00]} 21. Nc6 {[%emt 0:00:07]} Qf4 {[%emt 0:00:00]} 22. Nxe7+ {[%emt 0:00:10]} Kh8 {[%emt 0:00:00]} 23. Nxc8 {[%emt 0:02:08]} Rxc8 {[%emt 0:00:00]} 1-0

[Event "XII Sabadell Open 2019"]
[Site "Sabadell"]
[Date "2019.09.06"]
[Round "5.12"]
[White "Fernandez Aguilar, Francisco"]
[Black "Bedoya Rosales, Luis"]
[Result "1/2-1/2"]
[ECO "A49"]
[WhiteElo "2040"]
[BlackElo "1918"]
[Annotator "NA RC"]
[PlyCount "71"]
[EventDate "2019.09.01"]
[EventCountry "ESP"]
[SourceTitle "playchess.com"]
[Source "ChessBase"]
[SourceQuality "1"]
[TimeControl "5400+30"]

1. Nf3 {[%emt 0:07:01]} Nf6 {[%emt 0:08:17]} 2. g3 {[%emt 0:00:00]} g6 {[%emt 0:00:06]} 3. Bg2 {[%emt 0:00:00]} Bg7 {[%emt 0:00:02]} 4. O-O {[%emt 0:00:00]} O-O {[%emt 0:00:01]} 5. d4 {[%emt 0:00:00]} d6 {[%emt 0:00:02]} 6. a4 {[%emt 0:00:00]} a5 {[%emt 0:00:31]} 7. Nc3 {[%emt 0:00:00]} Na6 {[%emt 0:02:40] A49: 1 d4 Nf6 2 Nf3 g6 3 g3: Anti-King's Indian systems} (7... c6 8. e4 Qc7 9. Bf4 Nh5 10. Be3 Na6 11. Qd2 Nb4 12. Rfe1 Nf6 13. Rad1 Ng4 14. Bg5 h6 15. Bf4 e5 16. dxe5 dxe5 {1-0 (74) Ragger,M (2687)-Petrosian,T (2625) Minsk 2015}) 8. e4 {[%emt 0:00:00]} c6 {[%emt 0:01:56]} 9. Qe2 {[%emt 0:00:04]} Qc7 {[%emt 0:06:23]} 10. e5 $146 {[%emt 0:12:48]} ({Predecessor:} 10. Nd1 e5 11. c3 exd4 12. Nxd4 Re8 13. Qc2 Nc5 14. f3 d5 15. Bf4 Qb6 {0-1 (36) Aramayo Tapia,J (2149)-Arotoma Pablo,D Arequipa 2003}) 10... dxe5 {[%emt 0:00:00]} 11. dxe5 {[%emt 0:01:05]} Nd5 {[%emt 0:00:55]} 12. Nxd5 {[%emt 0:00:56]} cxd5 {[%emt 0:00:00]} 13. Bf4 {[%emt 0:01:54]} e6 {[%emt 0:00:00]} 14. Nd4 {[%emt 0:11:24]} Qb6 {[%emt 0:02:24]} 15. Nb5 {[%emt 0:12:04]} Bd7 {[%emt 0:05:12]} 16. Be3 {[%emt 0:12:12]} Bxb5 {[%emt 0:00:28]} 17. axb5 {[%emt 0:00:00]} Nc5 {[%emt 0:11:14]} 18. c4 {[%emt 0:04:29]} d4 {[%emt 0:04:02]} 19. Bxd4 {[%emt 0:01:06]} Rad8 {[%emt 0:00:02]} 20. Qe3 {[%emt 0:01:27]} Bh6 {[%emt 0:05:27]} 21. f4 {[%emt 0:03:15]} Rxd4 {[%emt 0:00:05]} 22. Qxd4 {[%emt 0:00:12]} Rd8 {[%emt 0:00:01]} 23. Qc3 $16 {[%emt 0:26:33]} a4 {[%emt 0:18:53]} 24. Kh1 {[%emt 0:00:00]} Nd3 {[%emt 0:04:40]} 25. Qc2 {[%emt 0:00:00]} Bf8 {[%emt 0:01:51]} 26. h3 {[%emt 0:00:00]} h5 {[%emt 0:04:34]} 27. h4 {[%emt 0:00:00]} Qe3 {[%emt 0:03:10]} 28. Rf3 {[%emt 0:00:00]} Ne1 {[%emt 0:01:51]} 29. Qf2 {[%emt 0:00:00]} Qxf2 {[%emt 0:00:01]} 30. Rxf2 {[%emt 0:00:00]} Nd3 {[%emt 0:00:03]} 31. Rd2 {[%emt 0:00:27]} Bb4 {[%emt 0:00:01]} 32. Re2 {[%emt 0:01:04]} Nc5 {[%emt 0:00:03]} 33. Kh2 {[%emt 0:03:09]} b6 {[%emt 0:00:14]} 34. Rf2 {[%emt 0:01:31]} Rd4 {[%emt 0:00:43]} 35. Rff1 {[%emt 0:01:07]} Rd2 {[%emt 0:01:18]} 36. Rab1 {[%emt 0:02:24]} 1/2-1/2

[Event "XII Sabadell Open 2019"]
[Site "Sabadell"]
[Date "2019.09.06"]
[Round "5.13"]
[White "Abreu Flores, Daniel"]
[Black "Borrellas Comellas, Josep"]
[Result "1/2-1/2"]
[ECO "C45"]
[WhiteElo "1905"]
[BlackElo "1943"]
[Annotator "NA"]
[PlyCount "51"]
[EventDate "2019.09.01"]
[EventCountry "ESP"]
[SourceTitle "playchess.com"]
[Source "ChessBase"]
[SourceQuality "1"]
[TimeControl "5400+30"]

1. e4 {[%emt 0:00:09]} e5 {[%emt 0:00:03]} 2. Nf3 {[%emt 0:00:06]} Nc6 {[%emt 0:00:06]} 3. d4 {[%emt 0:00:02]} exd4 {[%emt 0:00:08]} 4. Nxd4 {[%emt 0:00:08]} Nf6 {[%emt 0:02:08]} 5. Nxc6 {[%emt 0:00:41]} dxc6 {[%emt 0:01:25]} 6. Qxd8+ {[%emt 0:00:15]} Kxd8 {[%emt 0:00:10]} 7. f3 {[%emt 0:00:02]} Be6 {[%emt 0:01:55]} 8. Be3 {[%emt 0:02:00]} Nd7 {[%emt 0:05:28]} 9. Nd2 {[%emt 0:03:09]} Bc5 {[%emt 0:00:40]} 10. Bxc5 {[%emt 0:05:38]} Nxc5 {[%emt 0:03:42]} 11. Nb3 {[%emt 0:00:57]} Nxb3 {[%emt 0:05:56]} 12. axb3 {[%emt 0:04:03]} c5 {[%emt 0:00:13]} 13. Ra5 {[%emt 0:01:54]} b6 {[%emt 0:00:52]} 14. Ra6 {[%emt 0:00:14]} Bc8 {[%emt 0:00:28]} 15. Ra3 {[%emt 0:01:49]} a5 {[%emt 0:00:19]} 16. Bc4 {[%emt 0:01:38]} Ke7 {[%emt 0:08:06]} 17. Ke2 {[%emt 0:00:54]} Be6 {[%emt 0:01:29]} 18. c3 {[%emt 0:02:47]} Rad8 {[%emt 0:13:26]} 19. Raa1 {[%emt 0:03:21]} f6 {[%emt 0:12:57]} 20. Bxe6 {[%emt 0:09:33]} Kxe6 {[%emt 0:00:16]} 21. Rhd1 {[%emt 0:03:26]} Rhe8 {[%emt 0:08:02]} 22. Rxd8 {[%emt 0:01:55]} Rxd8 {[%emt 0:00:16]} 23. g3 {[%emt 0:03:26]} f5 {[%emt 0:01:30]} 24. exf5+ {[%emt 0:01:51]} Kxf5 {[%emt 0:00:15]} 25. Rd1 {[%emt 0:09:53]} Re8+ {[%emt 0:02:02]} 26. Kf2 {[%emt 0:01:18]} 1/2-1/2

[Event "XII Sabadell Open 2019"]
[Site "Sabadell"]
[Date "2019.09.06"]
[Round "5.14"]
[White "Alcon Davalos, Marc"]
[Black "Tortosa Moros, Joan"]
[Result "1-0"]
[ECO "B27"]
[WhiteElo "1459"]
[BlackElo "1647"]
[Annotator "NA"]
[PlyCount "101"]
[EventDate "2019.09.01"]
[EventCountry "ESP"]
[SourceTitle "playchess.com"]
[Source "ChessBase"]
[SourceQuality "1"]
[TimeControl "5400+30"]

1. e4 {[%emt 0:00:00]} c5 {[%emt 0:00:00]} 2. Nf3 {[%emt 0:00:03]} g6 {[%emt 0:00:00]} 3. Bc4 {[%emt 0:00:51]} Bg7 {[%emt 0:01:21]} 4. Nc3 {[%emt 0:00:27]} Nh6 {[%emt 0:03:55]} 5. d3 {[%emt 0:02:41]} O-O {[%emt 0:00:00]} 6. h3 {[%emt 0:00:29]} Kh8 {[%emt 0:00:00]} 7. g4 {[%emt 0:02:28]} Nc6 {[%emt 0:02:58]} 8. g5 {[%emt 0:02:30]} Ng8 {[%emt 0:00:00]} 9. Be3 {[%emt 0:00:17]} Nd4 {[%emt 0:00:00]} 10. Bxd4 {[%emt 0:04:39]} cxd4 {[%emt 0:01:37]} 11. Ne2 {[%emt 0:02:33]} Qa5+ {[%emt 0:01:00]} 12. Qd2 {[%emt 0:00:00]} Qxd2+ {[%emt 0:00:36]} 13. Nxd2 {[%emt 0:02:41]} Rb8 {[%emt 0:06:40]} 14. h4 {[%emt 0:00:52]} b5 {[%emt 0:00:00]} 15. Bb3 {[%emt 0:00:15]} a5 {[%emt 0:00:26]} 16. a4 {[%emt 0:01:25]} h5 {[%emt 0:02:47]} 17. axb5 {[%emt 0:08:30]} Rxb5 {[%emt 0:00:33]} 18. Nc4 {[%emt 0:00:22]} d5 {[%emt 0:06:02]} 19. exd5 {[%emt 0:03:27]} Rxd5 {[%emt 0:00:34]} 20. Rxa5 {[%emt 0:01:21]} Rxa5 {[%emt 0:01:01]} 21. Nxa5 {[%emt 0:00:10]} Bg4 {[%emt 0:00:45]} 22. Ng3 {[%emt 0:05:37]} Ra8 {[%emt 0:09:12]} 23. f3 {[%emt 0:02:11]} Rxa5 {[%emt 0:03:18]} 24. fxg4 {[%emt 0:01:39]} Be5 {[%emt 0:07:55]} 25. Kf2 {[%emt 0:00:00]} hxg4 {[%emt 0:02:13]} 26. Bxf7 {[%emt 0:00:11]} Kg7 {[%emt 0:01:47]} 27. Bb3 {[%emt 0:01:01]} Bf4 {[%emt 0:02:45]} 28. Re1 {[%emt 0:02:05]} Be3+ {[%emt 0:05:27]} 29. Kg2 {[%emt 0:00:14]} e5 {[%emt 0:02:41]} 30. Nf1 {[%emt 0:00:56]} Bf4 {[%emt 0:00:42]} 31. Nh2 {[%emt 0:03:04]} g3 {[%emt 0:04:20]} 32. Nf1 {[%emt 0:00:00]} Ne7 {[%emt 0:02:19]} 33. Nxg3 {[%emt 0:00:00]} Bxg3 {[%emt 0:00:15]} 34. Kxg3 {[%emt 0:00:00]} Nf5+ {[%emt 0:00:09]} 35. Kg4 {[%emt 0:00:00]} Ne3+ {[%emt 0:00:27]} 36. Kf3 {[%emt 0:00:00]} Ra8 {[%emt 0:01:50]} 37. Ke4 {[%emt 0:02:09]} Re8 {[%emt 0:04:09]} 38. Ra1 {[%emt 0:02:09]} Nf5 {[%emt 0:01:19]} 39. Ra7+ {[%emt 0:00:22]} Kh8 {[%emt 0:01:27]} 40. Ra5 {[%emt 0:05:53]} Nd6+ {[%emt 0:05:11]} 41. Kd5 {[%emt 0:00:00]} Nf5 {[%emt 0:00:28]} 42. Ra6 {[%emt 0:01:07]} Nxh4 {[%emt 0:01:08]} 43. Re6 {[%emt 0:04:39]} Rxe6 {[%emt 0:04:45]} 44. Kxe6 {[%emt 0:00:00]} Nf3 {[%emt 0:00:09]} 45. Kf6 {[%emt 0:00:00]} Kh7 {[%emt 0:01:11]} 46. Bf7 {[%emt 0:00:00]} Kh8 {[%emt 0:02:10]} 47. Bxg6 {[%emt 0:00:00]} Ne1 {[%emt 0:00:47]} 48. c3 {[%emt 0:00:00]} Nf3 {[%emt 0:04:53]} 49. Be4 {[%emt 0:00:00]} dxc3 {[%emt 0:01:16]} 50. bxc3 {[%emt 0:02:08]} Nd2 {[%emt 0:02:06]} 51. g6 {[%emt 0:00:00]} 1-0

[Event "XII Sabadell Open 2019"]
[Site "Sabadell"]
[Date "2019.09.06"]
[Round "5.15"]
[White "Menendez Cabrera, Enric"]
[Black "Ribera Caro, Joan"]
[Result "1-0"]
[ECO "E23"]
[WhiteElo "1558"]
[BlackElo "1342"]
[Annotator "NA"]
[PlyCount "55"]
[EventDate "2019.09.01"]
[EventCountry "ESP"]
[SourceTitle "playchess.com"]
[Source "ChessBase"]
[SourceQuality "1"]
[TimeControl "5400+30"]

1. d4 {[%emt 0:00:35]} Nf6 {[%emt 0:00:19]} 2. c4 {[%emt 0:00:09]} e6 {[%emt 0:00:09]} 3. Nc3 {[%emt 0:00:18]} Bb4 {[%emt 0:00:25]} 4. Qb3 {[%emt 0:00:21]} c5 {[%emt 0:00:25]} 5. Bg5 {[%emt 0:04:40]} Nc6 {[%emt 0:00:35]} 6. dxc5 {[%emt 0:07:21]} Qa5 {[%emt 0:05:07]} 7. Bxf6 {[%emt 0:04:32]} gxf6 {[%emt 0:00:09]} 8. e3 {[%emt 0:00:59]} Qxc5 {[%emt 0:02:20]} 9. a3 {[%emt 0:00:32]} Na5 {[%emt 0:07:57]} 10. Qxb4 {[%emt 0:05:27]} Qc7 {[%emt 0:04:01]} 11. Nb5 {[%emt 0:00:42]} Qb6 {[%emt 0:07:43]} 12. Nd6+ {[%emt 0:00:19]} Kf8 {[%emt 0:00:20]} 13. Qxb6 {[%emt 0:02:31]} axb6 {[%emt 0:00:02]} 14. b4 {[%emt 0:00:59]} Nc6 {[%emt 0:01:19]} 15. b5 {[%emt 0:00:32]} Ne5 {[%emt 0:01:06]} 16. Be2 {[%emt 0:00:25]} Rg8 {[%emt 0:02:37]} 17. Nf3 {[%emt 0:01:15]} Rxg2 {[%emt 0:04:33]} 18. Nxe5 {[%emt 0:00:12]} fxe5 {[%emt 0:01:28]} 19. Bf3 {[%emt 0:00:36]} Rg8 {[%emt 0:00:12]} 20. Ke2 {[%emt 0:00:21]} Ke7 {[%emt 0:01:42]} 21. Rhd1 {[%emt 0:01:36]} Ra4 {[%emt 0:04:17]} 22. h4 {[%emt 0:04:47]} f5 {[%emt 0:02:44]} 23. e4 {[%emt 0:02:33]} fxe4 {[%emt 0:02:11]} 24. Bxe4 {[%emt 0:00:37]} Rg4 {[%emt 0:00:30]} 25. Nxc8+ {[%emt 0:00:14]} Kd8 {[%emt 0:01:03]} 26. Nd6 {[%emt 0:01:17]} Rxc4 {[%emt 0:01:33]} 27. Nxc4 {[%emt 0:00:49]} Rxe4+ {[%emt 0:00:05]} 28. Ne3 {[%emt 0:00:20]} 1-0